Workbook

Sheet Processed_meteo_data
A1: 34 | K1: NEKE VRSTE FOR !!!!!!!!!!!!!!
A2: 29 | B2: Daily average | G2: Precipitation (mm) | L2: Air_Temperature (°C)
A3: =A1+A2 -> 63 | B3: Date | C3: Precipitation (mm) | D3: Air_Temperature (°C) | F3: Month | G3: P_MIN_DATE | H3: P_MIN_VALUE | I3: P_MAX_DATE | J3: P_MAX_VALUE | K3: P_SUM_VALUE | L3: AT_MIN_DATE | M3: AT_MIN_VALUE | N3: AT_MAX_DATE | O3: AT_MAX_VALUE | P3: AT_AVG_VALUE
A4: =IF(B4<>"",MONTH(B4),"") -> 1 | B4: =Sheet1!B4 -> 2016-01-01 | C4: =IF(Sheet1!E4=-1,0,Sheet1!E4) -> 0 | D4: =Sheet1!F4 -> -3.3 | F4: 1 | G4: =INDEX(B4:B34,MATCH(H4,C4:C34,0)) -> 2016-01-26 | H4: =IF(MONTH(B$4:B$400)=$F4,IFERROR(SMALL(C$4:C$400,COUNTIF(C$4:C$400,"<"&0.1)+1),0),"") -> 0.1 | I4: =INDEX(B4:B34,MATCH(MAX(C4:C34),C4:C34,0)) -> 2016-01-12 | J4: =MAX(IF(A$4:A$380 = F4,C$4:C$380)) -> 39 | K4: =SUMIF(A$1:A$380,F4,C$1:C$380) -> 62.8 | L4: =INDEX(Sheet1!B4:B34,MATCH(MIN(Sheet1!D4:D34),Sheet1!D4:D34,0)) -> 2016-01-05 | M4: =MIN(Sheet1!D4:D34) -> -14.2 | N4: =INDEX(Sheet1!B4:B34,MATCH(MAX(Sheet1!C4:C34),Sheet1!C4:C34,0)) -> 2016-01-11 | O4: =MAX(Sheet1!C4:C34) -> 16.7 | P4: =AVERAGE(D4:D34) -> -0.08387096774
A5: =IF(B5<>"",MONTH(B5),"") -> 1 | B5: =Sheet1!B5 -> 2016-01-02 | C5: =IF(Sheet1!E5=-1,0,Sheet1!E5) -> 0 | D5: =Sheet1!F5 -> -3.2 | F5: 2 | G5: =INDEX(B35:B63,MATCH(H5,C35:C63,0)) ->  | H5: =IF(MONTH(B$4:B$400)=$F5,IFERROR(SMALL(C$4:C$400,COUNTIF(C$4:C$400,"<"&0.1)+1),0),"") ->  | I5: =INDEX(B35:B63,MATCH(MAX(C35:C63),C35:C63,0)) -> 2016-02-16 | J5: =MAX(IF(A$4:A$380 = F5,C$4:C$380)) -> 0 | K5: 172.3 | L5: =INDEX(Sheet1!B35:B63,MATCH(MIN(Sheet1!D35:D63),Sheet1!D35:D63,0)) -> 2016-02-06 | M5: =MIN(Sheet1!D35:D63) -> -4.1 | N5: =INDEX(Sheet1!B35:B63,MATCH(MAX(Sheet1!C35:C63),Sheet1!C35:C63,0)) -> 2016-02-01 | O5: =MAX(Sheet1!C35:C63) -> 16.3 | P5: =AVERAGE(D35:D63) -> 5.224137931
A6: 1 | B6: =Sheet1!B6 -> 2016-01-03 | C6: =IF(Sheet1!E6=-1,0,Sheet1!E6) -> 6.6 | D6: =Sheet1!F6 -> -5 | F6: 3 | G6: =INDEX(B64:B94,MATCH(H6,C64:C94,0)) ->  | H6: =IF(MONTH(B$4:B$400)=$F6,IFERROR(SMALL(C$4:C$400,COUNTIF(C$4:C$400,"<"&0.1)+1),0),"") ->  | I6: =INDEX(B64:B94,MATCH(MAX(C64:C94),C64:C94,0)) -> 2016-03-04 | J6: =MAXIFs(C4:C$380,A4:A380,F6) ->  | K6: =SUMIF(A$1:A$380,F6,C$1:C$380) -> 59.6 | L6: =INDEX(Sheet1!B64:B94,MATCH(MIN(Sheet1!D64:D94),Sheet1!D64:D94,0)) -> 2016-03-25 | M6: =MIN(Sheet1!D64:D94) -> -4.1 | N6: =INDEX(Sheet1!B64:B94,MATCH(MAX(Sheet1!C64:C94),Sheet1!C64:C94,0)) -> 2016-03-31 | O6: =MAX(Sheet1!C64:C94) -> 20.6 | P6: =AVERAGE(D64:D94) -> 6.490322581
A7: 1 | B7: =Sheet1!B7 -> 2016-01-04 | C7: =IF(Sheet1!E7=-1,0,Sheet1!E7) -> 1.2 | D7: =Sheet1!F7 -> -6.5 | F7: 4 | G7: =INDEX(B95:B124,MATCH(H7,C95:C124,0)) ->  | I7: =INDEX(B95:B124,MATCH(MAX(C95:C124),C95:C124,0)) -> 2016-04-28 | J7: =MAX(C95:C124) -> 30.8 | K7: =SUMIF(A$1:A$380,F7,C$1:C$380) -> 68.3 | L7: =INDEX(Sheet1!B95:B124,MATCH(MIN(Sheet1!D95:D124),Sheet1!D95:D124,0)) -> 2016-04-26 | M7: =MIN(Sheet1!D95:D124) -> -3.1 | N7: =INDEX(Sheet1!B95:B124,MATCH(MAX(Sheet1!C95:C124),Sheet1!C95:C124,0)) -> 2016-04-06 | O7: =MAX(Sheet1!C95:C124) -> 25.1 | P7: =AVERAGE(D95:D124) -> 11.35666667
A8: 1 | B8: =Sheet1!B8 -> 2016-01-05 | C8: =IF(Sheet1!E8=-1,0,Sheet1!E8) -> 1.2 | D8: =Sheet1!F8 -> -6.2 | F8: 5 | G8: =INDEX(B125:B155,MATCH(H8,C125:C155,0)) ->  | I8: =INDEX(B125:B155,MATCH(MAX(C125:C155),C125:C155,0)) -> 2016-05-02 | J8: =MAX(C125:C155) -> 25.5 | K8: 129 | L8: =INDEX(Sheet1!B125:B155,MATCH(MIN(Sheet1!D125:D155),Sheet1!D125:D155,0)) -> 2016-05-17 | M8: =MIN(Sheet1!D125:D155) -> 3.1 | N8: =INDEX(Sheet1!B125:B155,MATCH(MAX(Sheet1!C125:C155),Sheet1!C125:C155,0)) -> 2016-05-28 | O8: =MAX(Sheet1!C125:C155) -> 29.4 | P8: =AVERAGE(D125:D155) -> 14.55806452
A9: 1 | B9: =Sheet1!B9 -> 2016-01-06 | C9: =IF(Sheet1!E9=-1,0,Sheet1!E9) -> 0.4 | D9: =Sheet1!F9 -> -2 | F9: 6 | G9: =INDEX(B156:B185,MATCH(H9,C156:C185,0)) ->  | I9: =INDEX(B156:B185,MATCH(MAX(C156:C185),C156:C185,0)) -> 2016-06-15 | J9: =MAX(C156:C185) -> 27.3 | K9: =SUMIF(A$1:A$380,F9,C$1:C$380) -> 120.5 | L9: =INDEX(Sheet1!B156:B185,MATCH(MIN(Sheet1!D156:D185),Sheet1!D156:D185,0)) -> 2016-06-04 | M9: =MIN(Sheet1!D156:D185) -> 10.1 | N9: =INDEX(Sheet1!B156:B185,MATCH(MAX(Sheet1!C156:C185),Sheet1!C156:C185,0)) -> 2016-06-24 | O9: =MAX(Sheet1!C156:C185) -> 32.9 | P9: =AVERAGE(D156:D185) -> 18.71
A10: 1 | B10: =Sheet1!B10 -> 2016-01-07 | C10: =IF(Sheet1!E10=-1,0,Sheet1!E10) -> 1 | D10: =Sheet1!F10 -> -1.8 | F10: 7 | G10: =INDEX(B186:B216,MATCH(H10,C186:C216,0)) ->  | I10: =INDEX(B186:B216,MATCH(MAX(C186:C216),C186:C216,0)) -> 2016-07-14 | J10: =MAX(C186:C216) -> 20.9 | K10: 66.8 | L10: =INDEX(Sheet1!B186:B216,MATCH(MIN(Sheet1!D186:D216),Sheet1!D186:D216,0)) -> 2016-07-05 | M10: =MIN(Sheet1!D186:D216) -> 11.2 | N10: =INDEX(Sheet1!B186:B216,MATCH(MAX(Sheet1!C186:C216),Sheet1!C186:C216,0)) -> 2016-07-12 | O10: =MAX(Sheet1!C186:C216) -> 33.4 | P10: =AVERAGE(D186:D216) -> 21.52903226
A11: 1 | B11: =Sheet1!B11 -> 2016-01-08 | C11: =IF(Sheet1!E11=-1,0,Sheet1!E11) -> 0 | D11: =Sheet1!F11 -> -0.3 | F11: 8 | G11: =INDEX(B217:B247,MATCH(H11,C217:C247,0)) ->  | I11: =INDEX(B217:B247,MATCH(MAX(C217:C247),C217:C247,0)) -> 2016-08-01 | J11: =MAX(C217:C247) -> 39 | K11: =SUMIF(A$1:A$380,F11,C$1:C$380) -> 172.7 | L11: =INDEX(Sheet1!B217:B247,MATCH(MIN(Sheet1!D217:D247),Sheet1!D217:D247,0)) -> 2016-08-12 | M11: =MIN(Sheet1!D217:D247) -> 5.9 | N11: =INDEX(Sheet1!B217:B247,MATCH(MAX(Sheet1!C217:C247),Sheet1!C217:C247,0)) -> 2016-08-05 | O11: =MAX(Sheet1!C217:C247) -> 30.7 | P11: =AVERAGE(D217:D247) -> 18.79677419
A12: 1 | B12: =Sheet1!B12 -> 2016-01-09 | C12: =IF(Sheet1!E12=-1,0,Sheet1!E12) -> 1.3 | D12: =Sheet1!F12 -> 1.4 | F12: 9 | G12: =INDEX(B248:B277,MATCH(H12,C248:C277,0)) -> 2016-09-02 | H12: =IFERROR(SMALL(C248:C277,COUNTIF(C248:C277,"<"&0.1)+1),0) -> 0.1 | I12: =INDEX(B248:B277,MATCH(MAX(C248:C277),C248:C277,0)) -> 2016-09-17 | J12: =MAX(C248:C277) -> 18.3 | K12: 40.5 | L12: =INDEX(Sheet1!B248:B277,MATCH(MIN(Sheet1!D248:D277),Sheet1!D248:D277,0)) -> 2016-09-22 | M12: =MIN(Sheet1!D248:D277) -> 4.5 | N12: =INDEX(Sheet1!B248:B277,MATCH(MAX(Sheet1!C248:C277),Sheet1!C248:C277,0)) -> 2016-09-04 | O12: =MAX(Sheet1!C248:C277) -> 29.7 | P12: =AVERAGE(D248:D277) -> 16.46666667
A13: 1 | B13: =Sheet1!B13 -> 2016-01-10 | C13: =IF(Sheet1!E13=-1,0,Sheet1!E13) -> 12.9 | D13: =Sheet1!F13 -> 6.7 | F13: 10 | G13: =INDEX(B278:B308,MATCH(H13,C278:C308,0)) -> 2016-10-24 | H13: =IFERROR(SMALL(C278:C308,COUNTIF(C278:C308,"<"&0.1)+1),0) -> 0.1 | I13: =INDEX(B278:B308,MATCH(MAX(C278:C308),C278:C308,0)) -> 2016-10-26 | J13: =MAX(C278:C308) -> 28.6 | K13: 103 | L13: =INDEX(Sheet1!B278:B308,MATCH(MIN(Sheet1!D278:D308),Sheet1!D278:D308,0)) -> 2016-10-06 | M13: =MIN(Sheet1!D278:D308) -> -1.8 | N13: =INDEX(Sheet1!B278:B308,MATCH(MAX(Sheet1!C278:C308),Sheet1!C278:C308,0)) -> 2016-10-01 | O13: =MAX(Sheet1!C278:C308) -> 24.1 | P13: =AVERAGE(D278:D308) -> 9.380645161
A14: 1 | B14: =Sheet1!B14 -> 2016-01-11 | C14: =IF(Sheet1!E14=-1,0,Sheet1!E14) -> 0.4 | D14: =Sheet1!F14 -> 10.4 | F14: 11 | G14: =INDEX(B309:B338,MATCH(H14,C309:C338,0)) -> 2016-11-10 | H14: =IFERROR(SMALL(C309:C338,COUNTIF(C309:C338,"<"&0.1)+1),0) -> 0.1 | I14: =INDEX(B309:B338,MATCH(MAX(C309:C338),C309:C338,0)) -> 2016-11-07 | J14: =MAX(C309:C338) -> 38.1 | K14: =SUMIF(A$1:A$380,F14,C$1:C$380) -> 143 | L14: =INDEX(Sheet1!B309:B338,MATCH(MIN(Sheet1!D309:D338),Sheet1!D309:D338,0)) -> 2016-11-30 | M14: =MIN(Sheet1!D309:D338) -> -7.4 | N14: =INDEX(Sheet1!B309:B338,MATCH(MAX(Sheet1!C309:C338),Sheet1!C309:C338,0)) -> 2016-11-24 | O14: =MAX(Sheet1!C309:C338) -> 18.2 | P14: =AVERAGE(D309:D338) -> 5.973333333
A15: 1 | B15: =Sheet1!B15 -> 2016-01-12 | C15: =IF(Sheet1!E15=-1,0,Sheet1!E15) -> 36.7 | D15: =Sheet1!F15 -> 3.3 | F15: 12 | G15: =INDEX(B339:B369,MATCH(H15,C339:C369,0)) -> 2016-12-27 | H15: =IFERROR(SMALL(C339:C369,COUNTIF(C339:C369,"<"&0.1)+1),0) -> 0.1 | I15: =INDEX(B339:B369,MATCH(MAX(C339:C369),C339:C369,0)) -> 2016-12-29 | J15: =MAX(C339:C369) -> 0.2 | K15: 0.3 | L15: =INDEX(Sheet1!B339:B369,MATCH(MIN(Sheet1!D339:D369),Sheet1!D339:D369,0)) -> 2016-12-31 | M15: =MIN(Sheet1!D339:D369) -> -10.6 | N15: =INDEX(Sheet1!B339:B369,MATCH(MAX(Sheet1!C339:C369),Sheet1!C339:C369,0)) -> 2016-12-12 | O15: =MAX(Sheet1!C339:C369) -> 12.6 | P15: =AVERAGE(D339:D369) -> -0.9225806452
A16: 1 | B16: =Sheet1!B16 -> 2016-01-13 | C16: =IF(Sheet1!E16=-1,0,Sheet1!E16) -> 0 | D16: =Sheet1!F16 -> 2.2
A17: 1 | B17: =Sheet1!B17 -> 2016-01-14 | C17: =IF(Sheet1!E17=-1,0,Sheet1!E17) -> 0 | D17: =Sheet1!F17 -> 0.9 | F17: Precipitation (mm) | J17: Air_Temperature (°C)
A18: 1 | B18: =Sheet1!B18 -> 2016-01-15 | C18: =IF(Sheet1!E18=-1,0,Sheet1!E18) -> 0.9 | D18: =Sheet1!F18 -> 0.6 | F18: P_YEARLY | G18: P_DATE | H18: P_VALUE | J18: AT_YEARLY | K18: AT_DATE | L18: AT_VALUE
A19: 1 | B19: =Sheet1!B19 -> 2016-01-16 | C19: =IF(Sheet1!E19=-1,0,Sheet1!E19) -> 0 | D19: =Sheet1!F19 -> -1 | F19: MIN | G19: =INDEX(G4:G15,MATCH(MIN(H4:H15),H4:H15,0)) -> 2016-01-26 | H19: =MIN(H4:H15) -> 0.1 | J19: MIN | K19: =INDEX(L4:L15,MATCH(MIN(M4:M15),M4:M15,0)) -> 2016-01-05 | L19: =MIN(M4:M15) -> -14.2
A20: 1 | B20: =Sheet1!B20 -> 2016-01-17 | C20: =IF(Sheet1!E20=-1,0,Sheet1!E20) -> 0 | D20: =Sheet1!F20 -> -1.6 | F20: MAX | G20: =INDEX(I4:I15,MATCH(MAX(J4:J15),J4:J15,0)) ->  | H20: =MAX(J4:J15) ->  | J20: MAX | K20: =INDEX(N4:N15,MATCH(MAX(O4:O15),O4:O15,0)) -> 2016-07-12 | L20: =MAX(O4:O15) -> 33.4
A21: 1 | B21: =Sheet1!B21 -> 2016-01-18 | C21: =IF(Sheet1!E21=-1,0,Sheet1!E21) -> 0 | D21: =Sheet1!F21 -> -5.3 | F21: SUM | G21: =YEAR(B4) -> 2016 | H21: =SUM(K4:K15) -> 1138.8 | J21: AVG | K21: =YEAR(B4) -> 2016 | L21: =AVERAGE(P4:P15) -> 10.62326597
A22: 1 | B22: =Sheet1!B22 -> 2016-01-19 | C22: =IF(Sheet1!E22=-1,0,Sheet1!E22) -> 0 | D22: =Sheet1!F22 -> -5.9
A23: 1 | B23: =Sheet1!B23 -> 2016-01-20 | C23: =IF(Sheet1!E23=-1,0,Sheet1!E23) -> 0 | D23: =Sheet1!F23 -> -4.1
A24: 1 | B24: =Sheet1!B24 -> 2016-01-21 | C24: =IF(Sheet1!E24=-1,0,Sheet1!E24) -> 0 | D24: =Sheet1!F24 -> -3.5 | F24: Legend | H24: ALT in F11 vkljucis Visual Basic editor
A25: 1 | B25: =Sheet1!B25 -> 2016-01-22 | C25: =IF(Sheet1!E25=-1,0,Sheet1!E25) -> 0 | D25: =Sheet1!F25 -> -4
A26: 1 | B26: =Sheet1!B26 -> 2016-01-23 | C26: =IF(Sheet1!E26=-1,0,Sheet1!E26) -> 0 | D26: =Sheet1!F26 -> -6.2 | F26: Daily
A27: 1 | B27: =Sheet1!B27 -> 2016-01-24 | C27: =IF(Sheet1!E27=-1,0,Sheet1!E27) -> 0 | D27: =Sheet1!F27 -> -2.4 | F27: Monthly | I27: =MONTH(B4) -> 1 | M27: tipi dim v visual basic in excel .....
A28: 1 | B28: =Sheet1!B28 -> 2016-01-25 | C28: =IF(Sheet1!E28=-1,0,Sheet1!E28) -> 0 | D28: =Sheet1!F28 -> 2.5 | F28: Yearly | M28: https://docs.microsoft.com/en-us/dotnet/visual-basic/language-reference/statements/dim-statement
A29: 1 | B29: =Sheet1!B29 -> 2016-01-26 | C29: =IF(Sheet1!E29=-1,0,Sheet1!E29) -> 0.1 | D29: =Sheet1!F29 -> 2.6 | I29: Spodnjo st izracuna GUMB (klik)
A30: 1 | B30: =Sheet1!B30 -> 2016-01-27 | C30: =IF(Sheet1!E30=-1,0,Sheet1!E30) -> 0 | D30: =Sheet1!F30 -> 4.1 | H30: 100 | I30: 162.9 | J30: Dim vso As Double | M30: Kako dodadam gumb za izvedbo makroja (slike)
A31: 1 | B31: =Sheet1!B31 -> 2016-01-28 | C31: =IF(Sheet1!E31=-1,0,Sheet1!E31) -> 0 | D31: =Sheet1!F31 -> 5.6 | H31: 100 | J31: vso = 0 | M31: https://www.youtube.com/watch?v=BecOCSWw1to
A32: 1 | B32: =Sheet1!B32 -> 2016-01-29 | C32: =IF(Sheet1!E32=-1,0,Sheet1!E32) -> 0 | D32: =Sheet1!F32 -> 2.8 | H32: 100 | M32: Izberem recimo - velja za ta dokument
A33: 1 | B33: =Sheet1!B33 -> 2016-01-30 | C33: =IF(Sheet1!E33=-1,0,Sheet1!E33) -> 0 | D33: =Sheet1!F33 -> 7 | H33: 100 | J33: Dim i As Integer | M33: List1.ProFirst
A34: 1 | B34: =Sheet1!B34 -> 2016-01-31 | C34: =IF(Sheet1!E34=-1,0,Sheet1!E34) -> 0.1 | D34: =Sheet1!F34 -> 9.6 | F34: 2 | H34: 100
A35: 2 | B35: =Sheet1!B35 -> 2016-02-01 | C35: =IF(Sheet1!E35=-1,0,Sheet1!E35) -> 1 | D35: =Sheet1!F35 -> 7.8 | F35: 2 | H35: 100 | J35: For i = 30 To 39
A36: 2 | B36: =Sheet1!B36 -> 2016-02-02 | C36: =IF(Sheet1!E36=-1,0,Sheet1!E36) -> 0 | D36: =Sheet1!F36 -> 12.3 | H36: 100 | J36: Cells(i, 8).Value = 100
A37: 2 | B37: =Sheet1!B37 -> 2016-02-03 | C37: =IF(Sheet1!E37=-1,0,Sheet1!E37) -> 0 | D37: =Sheet1!F37 -> 6.1 | H37: 100
A38: 2 | B38: =Sheet1!B38 -> 2016-02-04 | C38: =IF(Sheet1!E38=-1,0,Sheet1!E38) -> 14.9 | D38: =Sheet1!F38 -> 3.1 | H38: 100 | J38: vso = Cells(i, 3).Value + vso
A39: 2 | B39: =Sheet1!B39 -> 2016-02-05 | C39: =IF(Sheet1!E39=-1,0,Sheet1!E39) -> 0 | D39: =Sheet1!F39 -> 1.6 | H39: 100
A40: 2 | B40: =Sheet1!B40 -> 2016-02-06 | C40: =IF(Sheet1!E40=-1,0,Sheet1!E40) -> 0 | D40: =Sheet1!F40 -> 6.2 | H40: 100
A41: 2 | B41: =Sheet1!B41 -> 2016-02-07 | C41: =IF(Sheet1!E41=-1,0,Sheet1!E41) -> 0 | D41: =Sheet1!F41 -> 9.5 | H41: 100 | J41: Next i
A42: 2 | B42: =Sheet1!B42 -> 2016-02-08 | C42: =IF(Sheet1!E42=-1,0,Sheet1!E42) -> 0.7 | D42: =Sheet1!F42 -> 9.4 | H42: 100
A43: 2 | B43: =Sheet1!B43 -> 2016-02-09 | C43: =IF(Sheet1!E43=-1,0,Sheet1!E43) -> 1.3 | D43: =Sheet1!F43 -> 11 | H43: 100 | J43: Cells(30, 9).Value = vso
A44: 2 | B44: =Sheet1!B44 -> 2016-02-10 | C44: =IF(Sheet1!E44=-1,0,Sheet1!E44) -> 17.4 | D44: =Sheet1!F44 -> 3.2 | H44: 100
A45: 2 | B45: =Sheet1!B45 -> 2016-02-11 | C45: =IF(Sheet1!E45=-1,0,Sheet1!E45) -> 5.5 | D45: =Sheet1!F45 -> 2 | H45: 100
A46: 2 | B46: =Sheet1!B46 -> 2016-02-12 | C46: =IF(Sheet1!E46=-1,0,Sheet1!E46) -> 0 | D46: =Sheet1!F46 -> 0.2 | H46: 100
A47: 2 | B47: =Sheet1!B47 -> 2016-02-13 | C47: =IF(Sheet1!E47=-1,0,Sheet1!E47) -> 18.2 | D47: =Sheet1!F47 -> 2.3 | H47: 100
A48: 2 | B48: =Sheet1!B48 -> 2016-02-14 | C48: =IF(Sheet1!E48=-1,0,Sheet1!E48) -> 0.7 | D48: =Sheet1!F48 -> 4.8 | H48: 100
A49: 2 | B49: =Sheet1!B49 -> 2016-02-15 | C49: =IF(Sheet1!E49=-1,0,Sheet1!E49) -> 12.2 | D49: =Sheet1!F49 -> 3.4 | H49: 100
A50: 2 | B50: =Sheet1!B50 -> 2016-02-16 | C50: =IF(Sheet1!E50=-1,0,Sheet1!E50) -> 27.3 | D50: =Sheet1!F50 -> 3.4 | H50: 100
A51: 2 | B51: =Sheet1!B51 -> 2016-02-17 | C51: =IF(Sheet1!E51=-1,0,Sheet1!E51) -> 12.3 | D51: =Sheet1!F51 -> 1.1 | H51: 100
A52: 2 | B52: =Sheet1!B52 -> 2016-02-18 | C52: =IF(Sheet1!E52=-1,0,Sheet1!E52) -> 15.9 | D52: =Sheet1!F52 -> 3.2 | H52: 100
A53: 2 | B53: =Sheet1!B53 -> 2016-02-19 | C53: =IF(Sheet1!E53=-1,0,Sheet1!E53) -> 23.5 | D53: =Sheet1!F53 -> 4.2 | H53: 100
A54: 2 | B54: =Sheet1!B54 -> 2016-02-20 | C54: =IF(Sheet1!E54=-1,0,Sheet1!E54) -> 9.6 | D54: =Sheet1!F54 -> 2.9 | H54: 100
A55: 2 | B55: =Sheet1!B55 -> 2016-02-21 | C55: =IF(Sheet1!E55=-1,0,Sheet1!E55) -> 0 | D55: =Sheet1!F55 -> 7.9 | H55: 100
A56: 2 | B56: =Sheet1!B56 -> 2016-02-22 | C56: =IF(Sheet1!E56=-1,0,Sheet1!E56) -> 0 | D56: =Sheet1!F56 -> 11.4 | H56: 100
A57: 2 | B57: =Sheet1!B57 -> 2016-02-23 | C57: =IF(Sheet1!E57=-1,0,Sheet1!E57) -> 0.2 | D57: =Sheet1!F57 -> 9.7 | H57: 100
A58: 2 | B58: =Sheet1!B58 -> 2016-02-24 | C58: =IF(Sheet1!E58=-1,0,Sheet1!E58) -> 1.5 | D58: =Sheet1!F58 -> 3.7 | H58: 100
A59: 2 | B59: =Sheet1!B59 -> 2016-02-25 | C59: =IF(Sheet1!E59=-1,0,Sheet1!E59) -> 0 | D59: =Sheet1!F59 -> 5.6 | H59: 100
A60: 2 | B60: =Sheet1!B60 -> 2016-02-26 | C60: =IF(Sheet1!E60=-1,0,Sheet1!E60) -> 0.6 | D60: =Sheet1!F60 -> 2 | H60: 100
A61: 2 | B61: =Sheet1!B61 -> 2016-02-27 | C61: =IF(Sheet1!E61=-1,0,Sheet1!E61) -> 0.2 | D61: =Sheet1!F61 -> 2.2
A62: 2 | B62: =Sheet1!B62 -> 2016-02-28 | C62: =IF(Sheet1!E62=-1,0,Sheet1!E62) -> 0.3 | D62: =Sheet1!F62 -> 4.8
A63: 2 | B63: =Sheet1!B63 -> 2016-02-29 | C63: =IF(Sheet1!E63=-1,0,Sheet1!E63) -> 9 | D63: =Sheet1!F63 -> 6.5
A64: 3 | B64: =Sheet1!B64 -> 2016-03-01 | C64: =IF(Sheet1!E64=-1,0,Sheet1!E64) -> 7.9 | D64: =Sheet1!F64 -> 5.9
A65: 3 | B65: =Sheet1!B65 -> 2016-03-02 | C65: =IF(Sheet1!E65=-1,0,Sheet1!E65) -> 0 | D65: =Sheet1!F65 -> 5
A66: 3 | B66: =Sheet1!B66 -> 2016-03-03 | C66: =IF(Sheet1!E66=-1,0,Sheet1!E66) -> 10.9 | D66: =Sheet1!F66 -> 2.2
A67: 3 | B67: =Sheet1!B67 -> 2016-03-04 | C67: =IF(Sheet1!E67=-1,0,Sheet1!E67) -> 19.1 | D67: =Sheet1!F67 -> 4.6
A68: 3 | B68: =Sheet1!B68 -> 2016-03-05 | C68: =IF(Sheet1!E68=-1,0,Sheet1!E68) -> 0 | D68: =Sheet1!F68 -> 9.1
A69: =IF(B69<>"",MONTH(B69),"") -> 3 | B69: =Sheet1!B69 -> 2016-03-06 | C69: =IF(Sheet1!E69=-1,0,Sheet1!E69) -> 4.8 | D69: =Sheet1!F69 -> 6.5
A70: 3 | B70: =Sheet1!B70 -> 2016-03-07 | C70: =IF(Sheet1!E70=-1,0,Sheet1!E70) -> 8.5 | D70: =Sheet1!F70 -> 2.4
A71: 3 | B71: =Sheet1!B71 -> 2016-03-08 | C71: =IF(Sheet1!E71=-1,0,Sheet1!E71) -> 4.8 | D71: =Sheet1!F71 -> 4.9
A72: 3 | B72: =Sheet1!B72 -> 2016-03-09 | C72: =IF(Sheet1!E72=-1,0,Sheet1!E72) -> 0 | D72: =Sheet1!F72 -> 4.5
A73: 3 | B73: =Sheet1!B73 -> 2016-03-10 | C73: =IF(Sheet1!E73=-1,0,Sheet1!E73) -> 0 | D73: =Sheet1!F73 -> 6.2
A74: 3 | B74: =Sheet1!B74 -> 2016-03-11 | C74: =IF(Sheet1!E74=-1,0,Sheet1!E74) -> 0.3 | D74: =Sheet1!F74 -> 7
A75: 3 | B75: =Sheet1!B75 -> 2016-03-12 | C75: =IF(Sheet1!E75=-1,0,Sheet1!E75) -> 1 | D75: =Sheet1!F75 -> 6.8
A76: 3 | B76: =Sheet1!B76 -> 2016-03-13 | C76: =IF(Sheet1!E76=-1,0,Sheet1!E76) -> 0 | D76: =Sheet1!F76 -> 5.4
A77: 3 | B77: =Sheet1!B77 -> 2016-03-14 | C77: =IF(Sheet1!E77=-1,0,Sheet1!E77) -> 0.1 | D77: =Sheet1!F77 -> 4.3
A78: 3 | B78: =Sheet1!B78 -> 2016-03-15 | C78: =IF(Sheet1!E78=-1,0,Sheet1!E78) -> 0 | D78: =Sheet1!F78 -> 1.3
A79: 3 | B79: =Sheet1!B79 -> 2016-03-16 | C79: =IF(Sheet1!E79=-1,0,Sheet1!E79) -> 1.2 | D79: =Sheet1!F79 -> 2.9
A80: 3 | B80: =Sheet1!B80 -> 2016-03-17 | C80: =IF(Sheet1!E80=-1,0,Sheet1!E80) -> 0 | D80: =Sheet1!F80 -> 3.3
A81: 3 | B81: =Sheet1!B81 -> 2016-03-18 | C81: =IF(Sheet1!E81=-1,0,Sheet1!E81) -> 0 | D81: =Sheet1!F81 -> 5.4
A82: 3 | B82: =Sheet1!B82 -> 2016-03-19 | C82: =IF(Sheet1!E82=-1,0,Sheet1!E82) -> 0 | D82: =Sheet1!F82 -> 8.6
A83: 3 | B83: =Sheet1!B83 -> 2016-03-20 | C83: =IF(Sheet1!E83=-1,0,Sheet1!E83) -> 0 | D83: =Sheet1!F83 -> 10
A84: 3 | B84: =Sheet1!B84 -> 2016-03-21 | C84: =IF(Sheet1!E84=-1,0,Sheet1!E84) -> 0 | D84: =Sheet1!F84 -> 8
A85: 3 | B85: =Sheet1!B85 -> 2016-03-22 | C85: =IF(Sheet1!E85=-1,0,Sheet1!E85) -> 0.1 | D85: =Sheet1!F85 -> 6.9
A86: 3 | B86: =Sheet1!B86 -> 2016-03-23 | C86: =IF(Sheet1!E86=-1,0,Sheet1!E86) -> 0 | D86: =Sheet1!F86 -> 7.1
A87: 3 | B87: =Sheet1!B87 -> 2016-03-24 | C87: =IF(Sheet1!E87=-1,0,Sheet1!E87) -> 0.4 | D87: =Sheet1!F87 -> 3.8
A88: 3 | B88: =Sheet1!B88 -> 2016-03-25 | C88: =IF(Sheet1!E88=-1,0,Sheet1!E88) -> 0 | D88: =Sheet1!F88 -> 6.6
A89: 3 | B89: =Sheet1!B89 -> 2016-03-26 | C89: =IF(Sheet1!E89=-1,0,Sheet1!E89) -> 0.1 | D89: =Sheet1!F89 -> 6.2
A90: 3 | B90: =Sheet1!B90 -> 2016-03-27 | C90: =IF(Sheet1!E90=-1,0,Sheet1!E90) -> 0.4 | D90: =Sheet1!F90 -> 7.2
A91: 3 | B91: =Sheet1!B91 -> 2016-03-28 | C91: =IF(Sheet1!E91=-1,0,Sheet1!E91) -> 0 | D91: =Sheet1!F91 -> 9.2
A92: 3 | B92: =Sheet1!B92 -> 2016-03-29 | C92: =IF(Sheet1!E92=-1,0,Sheet1!E92) -> 0 | D92: =Sheet1!F92 -> 11.2
A93: 3 | B93: =Sheet1!B93 -> 2016-03-30 | C93: =IF(Sheet1!E93=-1,0,Sheet1!E93) -> 0 | D93: =Sheet1!F93 -> 13
A94: 3 | B94: =Sheet1!B94 -> 2016-03-31 | C94: =IF(Sheet1!E94=-1,0,Sheet1!E94) -> 0 | D94: =Sheet1!F94 -> 15.7
A95: 4 | B95: =Sheet1!B95 -> 2016-04-01 | C95: =IF(Sheet1!E95=-1,0,Sheet1!E95) -> 0 | D95: =Sheet1!F95 -> 14.6
A96: 4 | B96: =Sheet1!B96 -> 2016-04-02 | C96: =IF(Sheet1!E96=-1,0,Sheet1!E96) -> 0 | D96: =Sheet1!F96 -> 9.4
A97: 4 | B97: =Sheet1!B97 -> 2016-04-03 | C97: =IF(Sheet1!E97=-1,0,Sheet1!E97) -> 0 | D97: =Sheet1!F97 -> 11.8
A98: 4 | B98: =Sheet1!B98 -> 2016-04-04 | C98: =IF(Sheet1!E98=-1,0,Sheet1!E98) -> 0 | D98: =Sheet1!F98 -> 16
A99: 4 | B99: =Sheet1!B99 -> 2016-04-05 | C99: =IF(Sheet1!E99=-1,0,Sheet1!E99) -> 0 | D99: =Sheet1!F99 -> 17.1
A100: 4 | B100: =Sheet1!B100 -> 2016-04-06 | C100: =IF(Sheet1!E100=-1,0,Sheet1!E100) -> 0 | D100: =Sheet1!F100 -> 18.1
A101: 4 | B101: =Sheet1!B101 -> 2016-04-07 | C101: =IF(Sheet1!E101=-1,0,Sheet1!E101) -> 0 | D101: =Sheet1!F101 -> 13.3
A102: 4 | B102: =Sheet1!B102 -> 2016-04-08 | C102: =IF(Sheet1!E102=-1,0,Sheet1!E102) -> 0 | D102: =Sheet1!F102 -> 10.2
A103: 4 | B103: =Sheet1!B103 -> 2016-04-09 | C103: =IF(Sheet1!E103=-1,0,Sheet1!E103) -> 7.3 | D103: =Sheet1!F103 -> 10.9
A104: 4 | B104: =Sheet1!B104 -> 2016-04-10 | C104: =IF(Sheet1!E104=-1,0,Sheet1!E104) -> 1.9 | D104: =Sheet1!F104 -> 12.5
A105: 4 | B105: =Sheet1!B105 -> 2016-04-11 | C105: =IF(Sheet1!E105=-1,0,Sheet1!E105) -> 0 | D105: =Sheet1!F105 -> 13.7
A106: 4 | B106: =Sheet1!B106 -> 2016-04-12 | C106: =IF(Sheet1!E106=-1,0,Sheet1!E106) -> 0 | D106: =Sheet1!F106 -> 13.6
A107: 4 | B107: =Sheet1!B107 -> 2016-04-13 | C107: =IF(Sheet1!E107=-1,0,Sheet1!E107) -> 0 | D107: =Sheet1!F107 -> 16.1
A108: 4 | B108: =Sheet1!B108 -> 2016-04-14 | C108: =IF(Sheet1!E108=-1,0,Sheet1!E108) -> 0.4 | D108: =Sheet1!F108 -> 10.1
A109: 4 | B109: =Sheet1!B109 -> 2016-04-15 | C109: =IF(Sheet1!E109=-1,0,Sheet1!E109) -> 14.2 | D109: =Sheet1!F109 -> 14
A110: 4 | B110: =Sheet1!B110 -> 2016-04-16 | C110: =IF(Sheet1!E110=-1,0,Sheet1!E110) -> 0 | D110: =Sheet1!F110 -> 16.6
A111: 4 | B111: =Sheet1!B111 -> 2016-04-17 | C111: =IF(Sheet1!E111=-1,0,Sheet1!E111) -> 0 | D111: =Sheet1!F111 -> 15.7
A112: 4 | B112: =Sheet1!B112 -> 2016-04-18 | C112: =IF(Sheet1!E112=-1,0,Sheet1!E112) -> 0 | D112: =Sheet1!F112 -> 12.8
A113: 4 | B113: =Sheet1!B113 -> 2016-04-19 | C113: =IF(Sheet1!E113=-1,0,Sheet1!E113) -> 1.2 | D113: =Sheet1!F113 -> 8.9
A114: 4 | B114: =Sheet1!B114 -> 2016-04-20 | C114: =IF(Sheet1!E114=-1,0,Sheet1!E114) -> 0 | D114: =Sheet1!F114 -> 8.1
A115: 4 | B115: =Sheet1!B115 -> 2016-04-21 | C115: =IF(Sheet1!E115=-1,0,Sheet1!E115) -> 0 | D115: =Sheet1!F115 -> 11.3
A116: 4 | B116: =Sheet1!B116 -> 2016-04-22 | C116: =IF(Sheet1!E116=-1,0,Sheet1!E116) -> 0 | D116: =Sheet1!F116 -> 13.1
A117: 4 | B117: =Sheet1!B117 -> 2016-04-23 | C117: =IF(Sheet1!E117=-1,0,Sheet1!E117) -> 0 | D117: =Sheet1!F117 -> 11.1
A118: 4 | B118: =Sheet1!B118 -> 2016-04-24 | C118: =IF(Sheet1!E118=-1,0,Sheet1!E118) -> 12.4 | D118: =Sheet1!F118 -> 7.1
A119: 4 | B119: =Sheet1!B119 -> 2016-04-25 | C119: =IF(Sheet1!E119=-1,0,Sheet1!E119) -> 0.1 | D119: =Sheet1!F119 -> 4.4
A120: 4 | B120: =Sheet1!B120 -> 2016-04-26 | C120: =IF(Sheet1!E120=-1,0,Sheet1!E120) -> 0 | D120: =Sheet1!F120 -> 7.5
A121: 4 | B121: =Sheet1!B121 -> 2016-04-27 | C121: =IF(Sheet1!E121=-1,0,Sheet1!E121) -> 0 | D121: =Sheet1!F121 -> 3.1
A122: 4 | B122: =Sheet1!B122 -> 2016-04-28 | C122: =IF(Sheet1!E122=-1,0,Sheet1!E122) -> 30.8 | D122: =Sheet1!F122 -> 2.6
A123: 4 | B123: =Sheet1!B123 -> 2016-04-29 | C123: =IF(Sheet1!E123=-1,0,Sheet1!E123) -> 0 | D123: =Sheet1!F123 -> 6.8
A124: 4 | B124: =Sheet1!B124 -> 2016-04-30 | C124: =IF(Sheet1!E124=-1,0,Sheet1!E124) -> 0 | D124: =Sheet1!F124 -> 10.2
A125: 5 | B125: =Sheet1!B125 -> 2016-05-01 | C125: =IF(Sheet1!E125=-1,0,Sheet1!E125) -> 0 | D125: =Sheet1!F125 -> 9.8
A126: 5 | B126: =Sheet1!B126 -> 2016-05-02 | C126: =IF(Sheet1!E126=-1,0,Sheet1!E126) -> 25.5 | D126: =Sheet1!F126 -> 11.3
A127: 5 | B127: =Sheet1!B127 -> 2016-05-03 | C127: =IF(Sheet1!E127=-1,0,Sheet1!E127) -> 3.5 | D127: =Sheet1!F127 -> 12.5
A128: 5 | B128: =Sheet1!B128 -> 2016-05-04 | C128: =IF(Sheet1!E128=-1,0,Sheet1!E128) -> 0 | D128: =Sheet1!F128 -> 11.5
A129: 5 | B129: =Sheet1!B129 -> 2016-05-05 | C129: =IF(Sheet1!E129=-1,0,Sheet1!E129) -> 2.8 | D129: =Sheet1!F129 -> 12.1
A130: 5 | B130: =Sheet1!B130 -> 2016-05-06 | C130: =IF(Sheet1!E130=-1,0,Sheet1!E130) -> 0 | D130: =Sheet1!F130 -> 14.1
A131: 5 | B131: =Sheet1!B131 -> 2016-05-07 | C131: =IF(Sheet1!E131=-1,0,Sheet1!E131) -> 0 | D131: =Sheet1!F131 -> 13.3
A132: 5 | B132: =Sheet1!B132 -> 2016-05-08 | C132: =IF(Sheet1!E132=-1,0,Sheet1!E132) -> 10.9 | D132: =Sheet1!F132 -> 12.5
A133: =IF(B133<>"",MONTH(B133),"") -> 5 | B133: =Sheet1!B133 -> 2016-05-09 | C133: =IF(Sheet1!E133=-1,0,Sheet1!E133) -> 6.4 | D133: =Sheet1!F133 -> 14.6
A134: 5 | B134: =Sheet1!B134 -> 2016-05-10 | C134: =IF(Sheet1!E134=-1,0,Sheet1!E134) -> 0 | D134: =Sheet1!F134 -> 14.1
A135: 5 | B135: =Sheet1!B135 -> 2016-05-11 | C135: =IF(Sheet1!E135=-1,0,Sheet1!E135) -> 1.2 | D135: =Sheet1!F135 -> 13.7
A136: 5 | B136: =Sheet1!B136 -> 2016-05-12 | C136: =IF(Sheet1!E136=-1,0,Sheet1!E136) -> 8.2 | D136: =Sheet1!F136 -> 13.8
A137: 5 | B137: =Sheet1!B137 -> 2016-05-13 | C137: =IF(Sheet1!E137=-1,0,Sheet1!E137) -> 8.6 | D137: =Sheet1!F137 -> 14.8
A138: 5 | B138: =Sheet1!B138 -> 2016-05-14 | C138: =IF(Sheet1!E138=-1,0,Sheet1!E138) -> 4.5 | D138: =Sheet1!F138 -> 13.9
A139: 5 | B139: =Sheet1!B139 -> 2016-05-15 | C139: =IF(Sheet1!E139=-1,0,Sheet1!E139) -> 23.5 | D139: =Sheet1!F139 -> 10
A140: 5 | B140: =Sheet1!B140 -> 2016-05-16 | C140: =IF(Sheet1!E140=-1,0,Sheet1!E140) -> 7.1 | D140: =Sheet1!F140 -> 9.2
A141: 5 | B141: =Sheet1!B141 -> 2016-05-17 | C141: =IF(Sheet1!E141=-1,0,Sheet1!E141) -> 0 | D141: =Sheet1!F141 -> 10.1
A142: 5 | B142: =Sheet1!B142 -> 2016-05-18 | C142: =IF(Sheet1!E142=-1,0,Sheet1!E142) -> 0.1 | D142: =Sheet1!F142 -> 12.5
A143: 5 | B143: =Sheet1!B143 -> 2016-05-19 | C143: =IF(Sheet1!E143=-1,0,Sheet1!E143) -> 0 | D143: =Sheet1!F143 -> 14.3
A144: 5 | B144: =Sheet1!B144 -> 2016-05-20 | C144: =IF(Sheet1!E144=-1,0,Sheet1!E144) -> 0.3 | D144: =Sheet1!F144 -> 15.1
A145: 5 | B145: =Sheet1!B145 -> 2016-05-21 | C145: =IF(Sheet1!E145=-1,0,Sheet1!E145) -> 0 | D145: =Sheet1!F145 -> 16.7
A146: 5 | B146: =Sheet1!B146 -> 2016-05-22 | C146: =IF(Sheet1!E146=-1,0,Sheet1!E146) -> 0 | D146: =Sheet1!F146 -> 18.4
A147: 5 | B147: =Sheet1!B147 -> 2016-05-23 | C147: =IF(Sheet1!E147=-1,0,Sheet1!E147) -> 0 | D147: =Sheet1!F147 -> 17.7
A148: 5 | B148: =Sheet1!B148 -> 2016-05-24 | C148: =IF(Sheet1!E148=-1,0,Sheet1!E148) -> 19.3 | D148: =Sheet1!F148 -> 12.4
A149: 5 | B149: =Sheet1!B149 -> 2016-05-25 | C149: =IF(Sheet1!E149=-1,0,Sheet1!E149) -> 0.4 | D149: =Sheet1!F149 -> 18.3
A150: 5 | B150: =Sheet1!B150 -> 2016-05-26 | C150: =IF(Sheet1!E150=-1,0,Sheet1!E150) -> 0 | D150: =Sheet1!F150 -> 19.3
A151: 5 | B151: =Sheet1!B151 -> 2016-05-27 | C151: =IF(Sheet1!E151=-1,0,Sheet1!E151) -> 2 | D151: =Sheet1!F151 -> 20.9
A152: 5 | B152: =Sheet1!B152 -> 2016-05-28 | C152: =IF(Sheet1!E152=-1,0,Sheet1!E152) -> 0 | D152: =Sheet1!F152 -> 21.4
A153: 5 | B153: =Sheet1!B153 -> 2016-05-29 | C153: =IF(Sheet1!E153=-1,0,Sheet1!E153) -> 0 | D153: =Sheet1!F153 -> 19.8
A154: 5 | B154: =Sheet1!B154 -> 2016-05-30 | C154: =IF(Sheet1!E154=-1,0,Sheet1!E154) -> 1.8 | D154: =Sheet1!F154 -> 16.3
A155: 5 | B155: =Sheet1!B155 -> 2016-05-31 | C155: =IF(Sheet1!E155=-1,0,Sheet1!E155) -> 2.9 | D155: =Sheet1!F155 -> 16.9
A156: 6 | B156: =Sheet1!B156 -> 2016-06-01 | C156: =IF(Sheet1!E156=-1,0,Sheet1!E156) -> 3.9 | D156: =Sheet1!F156 -> 17.4
A157: 6 | B157: =Sheet1!B157 -> 2016-06-02 | C157: =IF(Sheet1!E157=-1,0,Sheet1!E157) -> 0 | D157: =Sheet1!F157 -> 17
A158: 6 | B158: =Sheet1!B158 -> 2016-06-03 | C158: =IF(Sheet1!E158=-1,0,Sheet1!E158) -> 0 | D158: =Sheet1!F158 -> 17.1
A159: 6 | B159: =Sheet1!B159 -> 2016-06-04 | C159: =IF(Sheet1!E159=-1,0,Sheet1!E159) -> 0 | D159: =Sheet1!F159 -> 18.9
A160: 6 | B160: =Sheet1!B160 -> 2016-06-05 | C160: =IF(Sheet1!E160=-1,0,Sheet1!E160) -> 0 | D160: =Sheet1!F160 -> 15.8
A161: 6 | B161: =Sheet1!B161 -> 2016-06-06 | C161: =IF(Sheet1!E161=-1,0,Sheet1!E161) -> 11.3 | D161: =Sheet1!F161 -> 17.9
A162: 6 | B162: =Sheet1!B162 -> 2016-06-07 | C162: =IF(Sheet1!E162=-1,0,Sheet1!E162) -> 0.1 | D162: =Sheet1!F162 -> 18.4
A163: 6 | B163: =Sheet1!B163 -> 2016-06-08 | C163: =IF(Sheet1!E163=-1,0,Sheet1!E163) -> 0 | D163: =Sheet1!F163 -> 18.3
A164: 6 | B164: =Sheet1!B164 -> 2016-06-09 | C164: =IF(Sheet1!E164=-1,0,Sheet1!E164) -> 3.4 | D164: =Sheet1!F164 -> 16.4
A165: 6 | B165: =Sheet1!B165 -> 2016-06-10 | C165: =IF(Sheet1!E165=-1,0,Sheet1!E165) -> 18.3 | D165: =Sheet1!F165 -> 15.9
A166: 6 | B166: =Sheet1!B166 -> 2016-06-11 | C166: =IF(Sheet1!E166=-1,0,Sheet1!E166) -> 0.8 | D166: =Sheet1!F166 -> 18.3
A167: 6 | B167: =Sheet1!B167 -> 2016-06-12 | C167: =IF(Sheet1!E167=-1,0,Sheet1!E167) -> 6.7 | D167: =Sheet1!F167 -> 17.2
A168: 6 | B168: =Sheet1!B168 -> 2016-06-13 | C168: =IF(Sheet1!E168=-1,0,Sheet1!E168) -> 0.6 | D168: =Sheet1!F168 -> 18.1
A169: 6 | B169: =Sheet1!B169 -> 2016-06-14 | C169: =IF(Sheet1!E169=-1,0,Sheet1!E169) -> 0.2 | D169: =Sheet1!F169 -> 17.6
A170: 6 | B170: =Sheet1!B170 -> 2016-06-15 | C170: =IF(Sheet1!E170=-1,0,Sheet1!E170) -> 27.3 | D170: =Sheet1!F170 -> 17.4
A171: 6 | B171: =Sheet1!B171 -> 2016-06-16 | C171: =IF(Sheet1!E171=-1,0,Sheet1!E171) -> 4.9 | D171: =Sheet1!F171 -> 20.4
A172: 6 | B172: =Sheet1!B172 -> 2016-06-17 | C172: =IF(Sheet1!E172=-1,0,Sheet1!E172) -> 2.1 | D172: =Sheet1!F172 -> 19.6
A173: 6 | B173: =Sheet1!B173 -> 2016-06-18 | C173: =IF(Sheet1!E173=-1,0,Sheet1!E173) -> 0 | D173: =Sheet1!F173 -> 19.2
A174: 6 | B174: =Sheet1!B174 -> 2016-06-19 | C174: =IF(Sheet1!E174=-1,0,Sheet1!E174) -> 0.1 | D174: =Sheet1!F174 -> 15.5
A175: 6 | B175: =Sheet1!B175 -> 2016-06-20 | C175: =IF(Sheet1!E175=-1,0,Sheet1!E175) -> 20.1 | D175: =Sheet1!F175 -> 15.8
A176: 6 | B176: =Sheet1!B176 -> 2016-06-21 | C176: =IF(Sheet1!E176=-1,0,Sheet1!E176) -> 2.9 | D176: =Sheet1!F176 -> 19.2
A177: 6 | B177: =Sheet1!B177 -> 2016-06-22 | C177: =IF(Sheet1!E177=-1,0,Sheet1!E177) -> 0 | D177: =Sheet1!F177 -> 21.3
A178: 6 | B178: =Sheet1!B178 -> 2016-06-23 | C178: =IF(Sheet1!E178=-1,0,Sheet1!E178) -> 0 | D178: =Sheet1!F178 -> 22.9
A179: 6 | B179: =Sheet1!B179 -> 2016-06-24 | C179: =IF(Sheet1!E179=-1,0,Sheet1!E179) -> 0 | D179: =Sheet1!F179 -> 24.9
A180: 6 | B180: =Sheet1!B180 -> 2016-06-25 | C180: =IF(Sheet1!E180=-1,0,Sheet1!E180) -> 0 | D180: =Sheet1!F180 -> 22.1
A181: 6 | B181: =Sheet1!B181 -> 2016-06-26 | C181: =IF(Sheet1!E181=-1,0,Sheet1!E181) -> 5 | D181: =Sheet1!F181 -> 18.4
A182: 6 | B182: =Sheet1!B182 -> 2016-06-27 | C182: =IF(Sheet1!E182=-1,0,Sheet1!E182) -> 10.1 | D182: =Sheet1!F182 -> 17.1
A183: 6 | B183: =Sheet1!B183 -> 2016-06-28 | C183: =IF(Sheet1!E183=-1,0,Sheet1!E183) -> 2.7 | D183: =Sheet1!F183 -> 19
A184: 6 | B184: =Sheet1!B184 -> 2016-06-29 | C184: =IF(Sheet1!E184=-1,0,Sheet1!E184) -> 0 | D184: =Sheet1!F184 -> 21.5
A185: 6 | B185: =Sheet1!B185 -> 2016-06-30 | C185: =IF(Sheet1!E185=-1,0,Sheet1!E185) -> 0 | D185: =Sheet1!F185 -> 22.7
A186: 7 | B186: =Sheet1!B186 -> 2016-07-01 | C186: =IF(Sheet1!E186=-1,0,Sheet1!E186) -> 0 | D186: =Sheet1!F186 -> 22.5
A187: 7 | B187: =Sheet1!B187 -> 2016-07-02 | C187: =IF(Sheet1!E187=-1,0,Sheet1!E187) -> 0 | D187: =Sheet1!F187 -> 24.2
A188: 7 | B188: =Sheet1!B188 -> 2016-07-03 | C188: =IF(Sheet1!E188=-1,0,Sheet1!E188) -> 2.9 | D188: =Sheet1!F188 -> 15.9
A189: 7 | B189: =Sheet1!B189 -> 2016-07-04 | C189: =IF(Sheet1!E189=-1,0,Sheet1!E189) -> 3.8 | D189: =Sheet1!F189 -> 18.8
A190: 7 | B190: =Sheet1!B190 -> 2016-07-05 | C190: =IF(Sheet1!E190=-1,0,Sheet1!E190) -> 0 | D190: =Sheet1!F190 -> 21.8
A191: 7 | B191: =Sheet1!B191 -> 2016-07-06 | C191: =IF(Sheet1!E191=-1,0,Sheet1!E191) -> 0.5 | D191: =Sheet1!F191 -> 19.8
A192: 7 | B192: =Sheet1!B192 -> 2016-07-07 | C192: =IF(Sheet1!E192=-1,0,Sheet1!E192) -> 9.3 | D192: =Sheet1!F192 -> 19.6
A193: 7 | B193: =Sheet1!B193 -> 2016-07-08 | C193: =IF(Sheet1!E193=-1,0,Sheet1!E193) -> 0 | D193: =Sheet1!F193 -> 21.8
A194: 7 | B194: =Sheet1!B194 -> 2016-07-09 | C194: =IF(Sheet1!E194=-1,0,Sheet1!E194) -> 0 | D194: =Sheet1!F194 -> 22.2
A195: 7 | B195: =Sheet1!B195 -> 2016-07-10 | C195: =IF(Sheet1!E195=-1,0,Sheet1!E195) -> 0 | D195: =Sheet1!F195 -> 24.3
A196: 7 | B196: =Sheet1!B196 -> 2016-07-11 | C196: =IF(Sheet1!E196=-1,0,Sheet1!E196) -> 0 | D196: =Sheet1!F196 -> 25.6
A197: =IF(B197<>"",MONTH(B197),"") -> 7 | B197: =Sheet1!B197 -> 2016-07-12 | C197: =IF(Sheet1!E197=-1,0,Sheet1!E197) -> 0 | D197: =Sheet1!F197 -> 25.4
A198: 7 | B198: =Sheet1!B198 -> 2016-07-13 | C198: =IF(Sheet1!E198=-1,0,Sheet1!E198) -> 0 | D198: =Sheet1!F198 -> 22
A199: 7 | B199: =Sheet1!B199 -> 2016-07-14 | C199: =IF(Sheet1!E199=-1,0,Sheet1!E199) -> 20.9 | D199: =Sheet1!F199 -> 17.3
A200: 7 | B200: =Sheet1!B200 -> 2016-07-15 | C200: =IF(Sheet1!E200=-1,0,Sheet1!E200) -> 0 | D200: =Sheet1!F200 -> 17.1
... 169 more rows

Sheet Sheet1
B3: Date | C3: MAX_T | D3: MIN_T | E3: Padavine | F3: pov_dnev_T | H3: delta - iskanje napake min > max TEM | L3: POV_DNEVNA<T_MIN:in >T_MAX
B4: 2016-01-01 | C4: 1.5 | D4: -6.6 | E4: -1 | F4: -3.3 | H4: =IF(C4-D4<0, "MINT > MAXT --> NAPAKA!!!!","") ->  | L4: =IF(AND(F4>D4,F4<C4),"","NAPAKA. KER NE VELJA TMIN<TPOV<TMAX") -> 
B5: 2016-01-02 | C5: -0.9 | D5: -8.3 | E5: -1 | F5: -3.2 | L5: =IF(AND(F5>D5,F5<C5),"","NAPAKA. KER NE VELJA TMIN<TPOV<TMAX") -> 
B6: 2016-01-03 | C6: -1.6 | D6: -5.3 | E6: 6.6 | F6: -5
B7: 2016-01-04 | C7: -4.1 | D7: -9.6 | E7: 1.2 | F7: -6.5
B8: 2016-01-05 | C8: -2.6 | D8: -14.2 | E8: 1.2 | F8: -6.2
B9: 2016-01-06 | C9: -0.9 | D9: -3.4 | E9: 0.4 | F9: -2
B10: 2016-01-07 | C10: 4.4 | D10: -8 | E10: 1 | F10: -1.8
B11: 2016-01-08 | C11: 3.5 | D11: -7.6 | E11: -1 | F11: -0.3
B12: 2016-01-09 | C12: 2 | D12: 0.4 | E12: 1.3 | F12: 1.4
B13: 2016-01-10 | C13: 11.2 | D13: 0.8 | E13: 12.9 | F13: 6.7
B14: 2016-01-11 | C14: 16.7 | D14: 7.3 | E14: 0.4 | F14: 10.4
B15: 2016-01-12 | C15: 11.2 | D15: 0 | E15: 36.7 | F15: 3.3
B16: 2016-01-13 | C16: 9.6 | D16: -1.9 | E16: -1 | F16: 2.2
B17: 2016-01-14 | C17: 3.7 | D17: -4.7 | E17: -1 | F17: 0.9
B18: 2016-01-15 | C18: 5.3 | D18: -2.3 | E18: 0.9 | F18: 0.6
B19: 2016-01-16 | C19: 4.1 | D19: -6.1 | E19: -1 | F19: -1
B20: 2016-01-17 | C20: 3.8 | D20: -7.2 | E20: -1 | F20: -1.6
B21: 2016-01-18 | C21: 0.3 | D21: -8.3 | E21: -1 | F21: -5.3
B22: 2016-01-19 | C22: -0.4 | D22: -10.6 | E22: -1 | F22: -5.9
B23: 2016-01-20 | C23: 2.1 | D23: -9.2 | E23: -1 | F23: -4.1
B24: 2016-01-21 | C24: 3.4 | D24: -9.6 | E24: -1 | F24: -3.5
B25: 2016-01-22 | C25: 1.7 | D25: -7 | E25: -1 | F25: -4
B26: 2016-01-23 | C26: -0.9 | D26: -10.5 | E26: -1 | F26: -6.2
B27: 2016-01-24 | C27: 5 | D27: -10.3 | E27: -1 | F27: -2.4
B28: 2016-01-25 | C28: 11.2 | D28: -3 | E28: -1 | F28: 2.5
B29: 2016-01-26 | C29: 14.4 | D29: -4.1 | E29: 0.1 | F29: 2.6
B30: 2016-01-27 | C30: 15.6 | D30: -4.2 | E30: -1 | F30: 4.1
B31: 2016-01-28 | C31: 14.6 | D31: 1 | E31: -1 | F31: 5.6
B32: 2016-01-29 | C32: 14.2 | D32: -2.9 | E32: -1 | F32: 2.8
B33: 2016-01-30 | C33: 11.3 | D33: -3.5 | E33: -1 | F33: 7
B34: 2016-01-31 | C34: 11.7 | D34: 7.5 | E34: 0.1 | F34: 9.6
B35: 2016-02-01 | C35: 16.3 | D35: 1.7 | E35: 1 | F35: 7.8
B36: 2016-02-02 | C36: 14.4 | D36: 5.7 | E36: -1 | F36: 12.3
B37: 2016-02-03 | C37: 12.9 | D37: 2.6 | E37: -1 | F37: 6.1
B38: 2016-02-04 | C38: 9.7 | D38: -0.1 | E38: 14.9 | F38: 3.1
B39: 2016-02-05 | C39: 9.9 | D39: -2.9 | E39: -1 | F39: 1.6
B40: 2016-02-06 | C40: 12.6 | D40: -4.1 | E40: -1 | F40: 6.2
B41: 2016-02-07 | C41: 11.1 | D41: 6.7 | E41: -1 | F41: 9.5
B42: 2016-02-08 | C42: 13.7 | D42: 4.9 | E42: 0.7 | F42: 9.4
B43: 2016-02-09 | C43: 13.8 | D43: 8.9 | E43: 1.3 | F43: 11
B44: 2016-02-10 | C44: 11 | D44: 0.3 | E44: 17.4 | F44: 3.2
B45: 2016-02-11 | C45: 10.7 | D45: -2.3 | E45: 5.5 | F45: 2
B46: 2016-02-12 | C46: 1.5 | D46: -3.4 | E46: -1 | F46: 0.2
B47: 2016-02-13 | C47: 8.4 | D47: -0.1 | E47: 18.2 | F47: 2.3
B48: 2016-02-14 | C48: 7.8 | D48: 1.3 | E48: 0.7 | F48: 4.8
B49: 2016-02-15 | C49: 5.7 | D49: 1 | E49: 12.2 | F49: 3.4
B50: 2016-02-16 | C50: 5.6 | D50: 1.9 | E50: 27.3 | F50: 3.4
B51: 2016-02-17 | C51: 3.2 | D51: 0 | E51: 12.3 | F51: 1.1
B52: 2016-02-18 | C52: 3.7 | D52: 1.1 | E52: 15.9 | F52: 3.2
B53: 2016-02-19 | C53: 5.7 | D53: 3.3 | E53: 23.5 | F53: 4.2
B54: 2016-02-20 | C54: 7.6 | D54: 1.5 | E54: 9.6 | F54: 2.9
B55: 2016-02-21 | C55: 12.5 | D55: 1 | E55: -1 | F55: 7.9
B56: 2016-02-22 | C56: 13.8 | D56: 4.2 | E56: -1 | F56: 11.4
B57: 2016-02-23 | C57: 13.7 | D57: 7.1 | E57: 0.2 | F57: 9.7
B58: 2016-02-24 | C58: 9.8 | D58: 0.5 | E58: 1.5 | F58: 3.7
B59: 2016-02-25 | C59: 8.7 | D59: -1.1 | E59: -1 | F59: 5.6
B60: 2016-02-26 | C60: 6.9 | D60: 0.5 | E60: 0.6 | F60: 2
B61: 2016-02-27 | C61: 5.2 | D61: -3.2 | E61: 0.2 | F61: 2.2
B62: 2016-02-28 | C62: 7.1 | D62: 1 | E62: 0.3 | F62: 4.8
B63: 2016-02-29 | C63: 8.7 | D63: 4.4 | E63: 9 | F63: 6.5
B64: 2016-03-01 | C64: 11.8 | D64: 3.4 | E64: 7.9 | F64: 5.9
B65: 2016-03-02 | C65: 13.5 | D65: -1.8 | E65: -1 | F65: 5
B66: 2016-03-03 | C66: 4.9 | D66: 0.1 | E66: 10.9 | F66: 2.2
B67: 2016-03-04 | C67: 9.4 | D67: 2 | E67: 19.1 | F67: 4.6
B68: 2016-03-05 | C68: 12.7 | D68: -0.6 | E68: -1 | F68: 9.1 | H68: =IF(C68-D68<0, "MINT > MAXT --> NAPAKA!!!!","") -> 
B69: 2016-03-06 | C69: 11.4 | D69: 3 | E69: 4.8 | F69: 6.5 | L69: =IF(AND(F69>D69,F69<C69),"","NAPAKA. KER NE VELJA TMIN<TPOV<TMAX") -> 
B70: 2016-03-07 | C70: 5.8 | D70: 0.5 | E70: 8.5 | F70: 2.4
B71: 2016-03-08 | C71: 7.7 | D71: 1.9 | E71: 4.8 | F71: 4.9
B72: 2016-03-09 | C72: 6.8 | D72: 3.1 | E72: -1 | F72: 4.5
B73: 2016-03-10 | C73: 14.1 | D73: 2.9 | E73: -1 | F73: 6.2
B74: 2016-03-11 | C74: 9.4 | D74: 3.2 | E74: 0.3 | F74: 7
B75: 2016-03-12 | C75: 7.3 | D75: 4.9 | E75: 1 | F75: 6.8
B76: 2016-03-13 | C76: 7.4 | D76: 4.4 | E76: -1 | F76: 5.4
B77: 2016-03-14 | C77: 11.2 | D77: 0.6 | E77: 0.1 | F77: 4.3
B78: 2016-03-15 | C78: 5.2 | D78: -3.5 | E78: -1 | F78: 1.3
B79: 2016-03-16 | C79: 4.7 | D79: -1.1 | E79: 1.2 | F79: 2.9
B80: 2016-03-17 | C80: 12.5 | D80: -1.5 | E80: -1 | F80: 3.3
B81: 2016-03-18 | C81: 17.8 | D81: -3.3 | E81: -1 | F81: 5.4
B82: 2016-03-19 | C82: 17.1 | D82: -2.3 | E82: -1 | F82: 8.6
B83: 2016-03-20 | C83: 17.8 | D83: -1.4 | E83: -1 | F83: 10
B84: 2016-03-21 | C84: 12.2 | D84: 4.6 | E84: -1 | F84: 8
B85: 2016-03-22 | C85: 13.6 | D85: 3.9 | E85: 0.1 | F85: 6.9
B86: 2016-03-23 | C86: 9.2 | D86: 0.1 | E86: -1 | F86: 7.1
B87: 2016-03-24 | C87: 12.7 | D87: -0.5 | E87: 0.4 | F87: 3.8
B88: 2016-03-25 | C88: 14.1 | D88: -4.1 | E88: -1 | F88: 6.6
B89: 2016-03-26 | C89: 12.3 | D89: 3.6 | E89: 0.1 | F89: 6.2
B90: 2016-03-27 | C90: 15.3 | D90: -1.9 | E90: 0.4 | F90: 7.2
B91: 2016-03-28 | C91: 13.7 | D91: 0.9 | E91: -1 | F91: 9.2
B92: 2016-03-29 | C92: 17.1 | D92: 5.1 | E92: -1 | F92: 11.2
B93: 2016-03-30 | C93: 17.5 | D93: 5.9 | E93: -1 | F93: 13
B94: 2016-03-31 | C94: 20.6 | D94: 10.1 | E94: -1 | F94: 15.7
B95: 2016-04-01 | C95: 20.4 | D95: 11.5 | E95: -1 | F95: 14.6
B96: 2016-04-02 | C96: 16.1 | D96: 6.6 | E96: -1 | F96: 9.4
B97: 2016-04-03 | C97: 23 | D97: 0.5 | E97: -1 | F97: 11.8
B98: 2016-04-04 | C98: 21.5 | D98: 5.8 | E98: -1 | F98: 16
B99: 2016-04-05 | C99: 23.6 | D99: 11 | E99: -1 | F99: 17.1
B100: 2016-04-06 | C100: 25.1 | D100: 9.1 | E100: -1 | F100: 18.1
B101: 2016-04-07 | C101: 22.6 | D101: 5.5 | E101: -1 | F101: 13.3
B102: 2016-04-08 | C102: 13.6 | D102: 8 | E102: -1 | F102: 10.2
B103: 2016-04-09 | C103: 13.7 | D103: 9 | E103: 7.3 | F103: 10.9
B104: 2016-04-10 | C104: 16.6 | D104: 7.9 | E104: 1.9 | F104: 12.5
B105: 2016-04-11 | C105: 20.9 | D105: 6.4 | E105: -1 | F105: 13.7
B106: 2016-04-12 | C106: 21.8 | D106: 4.6 | E106: -1 | F106: 13.6
B107: 2016-04-13 | C107: 22.8 | D107: 7.3 | E107: -1 | F107: 16.1
B108: 2016-04-14 | C108: 16 | D108: 6.9 | E108: 0.4 | F108: 10.1
B109: 2016-04-15 | C109: 20.8 | D109: 3.5 | E109: 14.2 | F109: 14
B110: 2016-04-16 | C110: 21.1 | D110: 10.7 | E110: -1 | F110: 16.6
B111: 2016-04-17 | C111: 22 | D111: 10.4 | E111: -1 | F111: 15.7
B112: 2016-04-18 | C112: 16.9 | D112: 6.4 | E112: -1 | F112: 12.8
B113: 2016-04-19 | C113: 15.9 | D113: 5.2 | E113: 1.2 | F113: 8.9
B114: 2016-04-20 | C114: 16.9 | D114: -0.4 | E114: -1 | F114: 8.1
B115: 2016-04-21 | C115: 21.7 | D115: -0.1 | E115: -1 | F115: 11.3
B116: 2016-04-22 | C116: 22.7 | D116: 2.7 | E116: -1 | F116: 13.1
B117: 2016-04-23 | C117: 18.7 | D117: 3.7 | E117: -1 | F117: 11.1
B118: 2016-04-24 | C118: 10.3 | D118: 5.2 | E118: 12.4 | F118: 7.1
B119: 2016-04-25 | C119: 12.2 | D119: 1 | E119: 0.1 | F119: 4.4
B120: 2016-04-26 | C120: 14.9 | D120: -3.1 | E120: -1 | F120: 7.5
B121: 2016-04-27 | C121: 12.5 | D121: -0.1 | E121: -1 | F121: 3.1
B122: 2016-04-28 | C122: 5.1 | D122: 0 | E122: 30.8 | F122: 2.6
B123: 2016-04-29 | C123: 16.1 | D123: 0.6 | E123: -1 | F123: 6.8
B124: 2016-04-30 | C124: 18.5 | D124: -0.8 | E124: -1 | F124: 10.2
B125: 2016-05-01 | C125: 11.4 | D125: 6 | E125: -1 | F125: 9.8
B126: 2016-05-02 | C126: 13.8 | D126: 9 | E126: 25.5 | F126: 11.3
B127: 2016-05-03 | C127: 18.9 | D127: 8.8 | E127: 3.5 | F127: 12.5
B128: 2016-05-04 | C128: 15.8 | D128: 8.5 | E128: -1 | F128: 11.5
B129: 2016-05-05 | C129: 20.1 | D129: 8 | E129: 2.8 | F129: 12.1
B130: 2016-05-06 | C130: 22.8 | D130: 7.2 | E130: -1 | F130: 14.1
B131: 2016-05-07 | C131: 23.7 | D131: 5.3 | E131: -1 | F131: 13.3
B132: 2016-05-08 | C132: 20.9 | D132: 6.3 | E132: 10.9 | F132: 12.5 | H132: =IF(C132-D132<0, "MINT > MAXT --> NAPAKA!!!!","") -> 
B133: 2016-05-09 | C133: 23.2 | D133: 6 | E133: 6.4 | F133: 14.6 | L133: =IF(AND(F133>D133,F133<C133),"","NAPAKA. KER NE VELJA TMIN<TPOV<TMAX") -> 
B134: 2016-05-10 | C134: 17 | D134: 10 | E134: -1 | F134: 14.1
B135: 2016-05-11 | C135: 17.4 | D135: 9.6 | E135: 1.2 | F135: 13.7
B136: 2016-05-12 | C136: 15.9 | D136: 11.3 | E136: 8.2 | F136: 13.8
B137: 2016-05-13 | C137: 18.6 | D137: 11.6 | E137: 8.6 | F137: 14.8
B138: 2016-05-14 | C138: 19.8 | D138: 11.2 | E138: 4.5 | F138: 13.9
B139: 2016-05-15 | C139: 13.1 | D139: 8.9 | E139: 23.5 | F139: 10
B140: 2016-05-16 | C140: 16.5 | D140: 4.7 | E140: 7.1 | F140: 9.2
B141: 2016-05-17 | C141: 17.5 | D141: 3.1 | E141: -1 | F141: 10.1
B142: 2016-05-18 | C142: 20.9 | D142: 6 | E142: 0.1 | F142: 12.5
B143: 2016-05-19 | C143: 20.2 | D143: 3.9 | E143: -1 | F143: 14.3
B144: 2016-05-20 | C144: 20.8 | D144: 10.6 | E144: 0.3 | F144: 15.1
B145: 2016-05-21 | C145: 24.8 | D145: 5.9 | E145: -1 | F145: 16.7
B146: 2016-05-22 | C146: 26.7 | D146: 7.8 | E146: -1 | F146: 18.4
B147: 2016-05-23 | C147: 24.8 | D147: 8.7 | E147: -1 | F147: 17.7
B148: 2016-05-24 | C148: 18.1 | D148: 10.5 | E148: 19.3 | F148: 12.4
B149: 2016-05-25 | C149: 26.2 | D149: 9.6 | E149: 0.4 | F149: 18.3
B150: 2016-05-26 | C150: 26.8 | D150: 12.8 | E150: -1 | F150: 19.3
B151: 2016-05-27 | C151: 29 | D151: 11.5 | E151: 2 | F151: 20.9
B152: 2016-05-28 | C152: 29.4 | D152: 11.2 | E152: -1 | F152: 21.4
B153: 2016-05-29 | C153: 27.6 | D153: 15.4 | E153: -1 | F153: 19.8
B154: 2016-05-30 | C154: 21.8 | D154: 10.8 | E154: 1.8 | F154: 16.3
B155: 2016-05-31 | C155: 23.2 | D155: 12.2 | E155: 2.9 | F155: 16.9
B156: 2016-06-01 | C156: 22.7 | D156: 10.7 | E156: 3.9 | F156: 17.4
B157: 2016-06-02 | C157: 23.7 | D157: 11.3 | E157: -1 | F157: 17
B158: 2016-06-03 | C158: 23.2 | D158: 10.2 | E158: -1 | F158: 17.1
B159: 2016-06-04 | C159: 26.7 | D159: 10.1 | E159: -1 | F159: 18.9
B160: 2016-06-05 | C160: 25.3 | D160: 11 | E160: -1 | F160: 15.8
B161: 2016-06-06 | C161: 26.2 | D161: 13.7 | E161: 11.3 | F161: 17.9
B162: 2016-06-07 | C162: 25.8 | D162: 11.6 | E162: 0.1 | F162: 18.4
B163: 2016-06-08 | C163: 25.3 | D163: 13.1 | E163: -1 | F163: 18.3
B164: 2016-06-09 | C164: 19.7 | D164: 14.2 | E164: 3.4 | F164: 16.4
B165: 2016-06-10 | C165: 23.3 | D165: 13.8 | E165: 18.3 | F165: 15.9
B166: 2016-06-11 | C166: 25.4 | D166: 10.8 | E166: 0.8 | F166: 18.3
B167: 2016-06-12 | C167: 21.5 | D167: 14.8 | E167: 6.7 | F167: 17.2
B168: 2016-06-13 | C168: 25 | D168: 14.5 | E168: 0.6 | F168: 18.1
B169: 2016-06-14 | C169: 23.7 | D169: 11.9 | E169: 0.2 | F169: 17.6
B170: 2016-06-15 | C170: 23.3 | D170: 14.1 | E170: 27.3 | F170: 17.4
B171: 2016-06-16 | C171: 27.6 | D171: 12.5 | E171: 4.9 | F171: 20.4
B172: 2016-06-17 | C172: 25 | D172: 15.8 | E172: 2.1 | F172: 19.6
B173: 2016-06-18 | C173: 26.6 | D173: 10.5 | E173: -1 | F173: 19.2
B174: 2016-06-19 | C174: 17.4 | D174: 11.2 | E174: 0.1 | F174: 15.5
B175: 2016-06-20 | C175: 21.8 | D175: 13.4 | E175: 20.1 | F175: 15.8
B176: 2016-06-21 | C176: 27.3 | D176: 10.5 | E176: 2.9 | F176: 19.2
B177: 2016-06-22 | C177: 28.3 | D177: 12.7 | E177: -1 | F177: 21.3
B178: 2016-06-23 | C178: 30.4 | D178: 15 | E178: -1 | F178: 22.9
B179: 2016-06-24 | C179: 32.9 | D179: 18.1 | E179: -1 | F179: 24.9
B180: 2016-06-25 | C180: 31.3 | D180: 17.9 | E180: -1 | F180: 22.1
B181: 2016-06-26 | C181: 25.9 | D181: 15.6 | E181: 5 | F181: 18.4
B182: 2016-06-27 | C182: 21.2 | D182: 14.7 | E182: 10.1 | F182: 17.1
B183: 2016-06-28 | C183: 27 | D183: 10.2 | E183: 2.7 | F183: 19
B184: 2016-06-29 | C184: 30.2 | D184: 11.9 | E184: -1 | F184: 21.5
B185: 2016-06-30 | C185: 30 | D185: 14.4 | E185: -1 | F185: 22.7
B186: 2016-07-01 | C186: 29.5 | D186: 15 | E186: -1 | F186: 22.5
B187: 2016-07-02 | C187: 30.9 | D187: 16.3 | E187: -1 | F187: 24.2
B188: 2016-07-03 | C188: 22.7 | D188: 14.9 | E188: 2.9 | F188: 15.9
B189: 2016-07-04 | C189: 26.4 | D189: 13.4 | E189: 3.8 | F189: 18.8
B190: 2016-07-05 | C190: 28.3 | D190: 11.2 | E190: -1 | F190: 21.8
B191: 2016-07-06 | C191: 26.7 | D191: 16.4 | E191: 0.5 | F191: 19.8
B192: 2016-07-07 | C192: 25.3 | D192: 15.6 | E192: 9.3 | F192: 19.6
B193: 2016-07-08 | C193: 29.4 | D193: 12.4 | E193: -1 | F193: 21.8
B194: 2016-07-09 | C194: 28.6 | D194: 17.9 | E194: -1 | F194: 22.2
B195: 2016-07-10 | C195: 30.7 | D195: 17.3 | E195: -1 | F195: 24.3
B196: 2016-07-11 | C196: 33.3 | D196: 16.1 | E196: -1 | F196: 25.6 | H196: =IF(C196-D196<0, "MINT > MAXT --> NAPAKA!!!!","") -> 
B197: 2016-07-12 | C197: 33.4 | D197: 17.1 | E197: -1 | F197: 25.4 | L197: =IF(AND(F197>D197,F197<C197),"","NAPAKA. KER NE VELJA TMIN<TPOV<TMAX") -> 
B198: 2016-07-13 | C198: 27.7 | D198: 18.1 | E198: -1 | F198: 22
B199: 2016-07-14 | C199: 21.8 | D199: 14.3 | E199: 20.9 | F199: 17.3
B200: 2016-07-15 | C200: 19.2 | D200: 11.9 | E200: -1 | F200: 17.1
B201: 2016-07-16 | C201: 18 | D201: 14 | E201: 0.1 | F201: 15.5
B202: 2016-07-17 | C202: 25.6 | D202: 12.6 | E202: 0.1 | F202: 17.7
... 170 more rows
